bitfinex/quotes_ETHUSD_20241023
["timestamp","ask_amount","ask_price","bid_price","bid_amount"]
[1729658977297,1.68916917,2616.7,2616.4,4.23131]
[1729658977499,1.68916917,2616.7,2616.4,7.67109]
[1729658977905,1.68916917,2616.7,2616.4,4.23131]
[1729658979449,1.68916917,2616.8,2616.6,3.43957]
[1729658979940,1.68916917,2616.7,2616.6,3.43957]
[1729658980149,1.68916917,2616.8,2616.6,3.43957]
[1729658981952,4.21944,2617.1,2616.9,0.7733]
[1729658981953,1.68916917,2617.1,2616.9,0.7733]
[1729658982253,1.68916917,2617.2,2616.9,4.21247]
[1729658983116,1.68916917,2617.3,2617.0,3.43904]
[1729658983422,1.68916917,2617.2,2617.0,3.43904]
[1729658983609,1.68916917,2617.3,2617.0,3.43904]
[1729658983811,1.68916917,2617.2,2616.9,4.21247]
[1729658985726,1.68916917,2617.1,2616.9,4.2124]
[1729658986457,1.68916917,2617.2,2616.9,4.2124]
[1729658988246,1.68916917,2617.2,2616.9,4.98521701]
[1729658988461,1.68916917,2617.2,2617.0,3.43902]
[1729658989249,1.68916917,2617.3,2617.1,3.43889]
[1729658989949,1.68916917,2617.2,2617.1,3.43889]
[1729658990362,1.68916917,2617.2,2617.0,3.43904]
[1729658990663,1.68916917,2617.2,2617.0,4.2814657]
[1729658991660,0.8241,2617.6,2617.1,3.43885]
[1729658991834,1.68916917,2617.3,2617.2,3.43878]
[1729658992458,1.68916917,2617.4,2617.2,3.43878]
[1729658992676,1.68916917,2617.3,2617.1,3.43891]
[1729658992987,1.68916917,2617.3,2617.1,4.28828157]
[1729658993140,1.68916917,2617.3,2617.1,0.84937157]
[1729658993586,1.68916917,2617.3,2617.1,3.43886]
[1729658993739,1.68916917,2617.3,2617.0,3.43897]
[1729658993939,1.68916917,2617.2,2617.0,3.43897]
[1729658994178,2.47056917,2617.1,2616.8,3.43925]
[1729658994383,1.68916917,2616.9,2616.7,3.43943]
[1729658994542,1.68916917,2616.9,2616.7,3.862373]
[1729658994744,1.68916917,2616.9,2616.7,0.422943]
[1729658994948,1.68916917,2617.0,2616.8,3.43931]
[1729658995246,1.68916917,2616.9,2616.7,3.862373]
[1729658995487,1.68916917,2617.0,2616.7,3.862373]
[1729658996489,1.68916917,2617.0,2616.8,3.4393]
[1729658997144,2.47056917,2617.1,2616.8,3.4393]
[1729658998091,1.68916917,2617.0,2616.8,3.4393]
[1729658999593,1.68916917,2617.0,2616.7,3.862373]
[1729659001417,1.68916917,2617.0,2616.8,3.43929]
[1729659001908,2.47056917,2617.1,2616.8,3.43929]
[1729659004409,1.68916917,2617.0,2616.6,3.43957]
[1729659004612,1.68916917,2617.0,2616.6,6.87905]
[1729659004813,1.68916917,2617.0,2616.6,8.10926278]
[1729659005014,1.68916917,2617.0,2616.7,3.43938]
[1729659006715,1.68916917,2616.8,2616.5,4.2297]
[1729659007091,1.68916917,2616.9,2616.5,4.2297]
[1729659007476,1.68916917,2616.9,2616.5,4.89944593]
[1729659008073,1.68916917,2616.9,2616.6,3.43956]
[1729659008302,1.68916917,2617.0,2616.6,6.87905]
[1729659008827,1.68916917,2616.9,2616.6,6.87905]
[1729659009018,1.68916917,2616.9,2616.6,3.43949]
[1729659009223,1.68916917,2616.9,2616.7,3.43942]
[1729659009519,1.68916917,2617.0,2616.7,3.43942]
[1729659010105,0.7814,2617.1,2616.7,3.43942]
[1729659010320,1.68916917,2617.1,2616.8,4.19485]
[1729659010481,1.68916917,2617.1,2616.9,3.43909]
[1729659010673,1.68916917,2617.2,2616.9,3.43909]
[1729659011704,1.68916917,2617.2,2617.0,3.43901]
[1729659011901,1.68916917,2617.2,2616.9,3.43909]
[1729659012825,1.68916917,2617.1,2616.9,3.43909]
[1729659013232,1.68916917,2617.2,2616.9,3.43909]
[1729659013534,4.19559,2617.5,2617.0,3.43899]
[1729659013723,1.68916917,2617.3,2617.0,3.43899]
[1729659015415,1.68916917,2617.1,2616.9,3.43909]
[1729659015647,1.68916917,2617.1,2616.9,6.8782]
[1729659015816,1.68916917,2617.1,2616.9,3.43909]
[1729659017647,1.68916917,2617.2,2616.9,6.87819]
[1729659018143,1.68916917,2617.1,2616.9,3.43909]
[1729659018344,3.43854,2617.4,2616.9,3.43909]
[1729659018345,1.68916917,2617.2,2616.9,3.43909]
[1729659020023,1.68916917,2617.3,2616.9,3.43909]
[1729659020347,1.68916917,2617.1,2616.9,3.43909]
[1729659020552,1.68916917,2617.0,2616.7,3.43934]
[1729659020753,1.68916917,2616.9,2616.7,3.43934]
[1729659021625,0.7572,2617.1,2616.7,3.43934]
[1729659021828,2.44636917,2617.1,2616.8,3.4393]
[1729659022439,1.68916917,2617.0,2616.7,3.43934]
[1729659022826,1.68916917,2616.9,2616.7,3.43934]
[1729659023152,1.68916917,2616.9,2616.6,4.19517]
[1729659024315,1.68916917,2617.0,2616.6,4.19517]
[1729659026061,1.68916917,2616.7,2616.5,5.31174942]
[1729659026212,1.68916917,2616.6,2616.3,1.20230349]
[1729659026415,1.68916917,2616.5,2616.3,3.43991]
[1729659026610,1.68916917,2616.6,2616.2,2.05234186]
[1729659026811,0.8131,2616.8,2616.3,6.78541132]
[1729659027061,0.8131,2616.8,2616.3,7.98771481]
[1729659027232,1.68916917,2616.6,2616.3,3.80541132]
[1729659027729,1.68916917,2616.6,2616.3,5.00771481]
[1729659028107,0.8131,2616.8,2616.5,3.4396]
[1729659028412,1.68916917,2616.8,2616.5,7.38761831]
[1729659029153,1.68916917,2616.8,2616.5,3.94798831]
[1729659032191,1.68916917,2616.7,2616.5,3.94798831]
[1729659032942,1.68916917,2616.7,2616.5,0.50838831]
[1729659033203,1.68916917,2616.6,2616.2,1.20230349]
[1729659033373,0.8131,2616.4,2616.1,4.64240349]
[1729659033687,0.8131,2616.4,2616.1,8.08255349]
[1729659033926,0.8131,2616.4,2616.2,3.44009]
[1729659037990,2.50226917,2616.6,2616.2,3.44009]
[1729659038388,1.68916917,2616.5,2616.2,3.44009]
[1729659038583,0.8131,2616.6,2616.2,3.44009]
[1729659038584,2.50226917,2616.6,2616.2,3.44009]
[1729659038769,1.68916917,2616.5,2616.2,3.44009]
[1729659039405,1.68916917,2616.5,2616.1,3.4401]
[1729659042605,5.12887917,2616.5,2616.1,3.4401]
[1729659043014,5.12887917,2616.5,2615.9,5.81709132]
[1729659043015,1.68916917,2616.2,2615.9,3.44039]
[1729659043303,1.68916917,2616.3,2615.9,3.44039]
[1729659043882,1.68916917,2616.2,2615.9,3.44039]
[1729659044481,1.68916917,2616.2,2615.9,6.88079]
[1729659044782,1.68916917,2616.3,2615.9,6.88079]
[1729659045808,1.68916917,2616.0,2615.8,3.44061]
[1729659046212,2.48826917,2616.1,2615.8,3.44061]
[1729659046516,1.68916917,2616.0,2615.7,4.20364]
[1729659046816,1.68916917,2616.0,2615.7,5.14398371]
[1729659046977,2.48826917,2616.1,2615.7,5.14398371]
[1729659047172,1.68916917,2616.0,2615.7,5.14398371]
[1729659047693,2.48826917,2616.1,2615.7,5.14398371]
[1729659048077,2.48826917,2616.1,2615.8,3.44061]
[1729659049994,0.7991,2616.1,2615.8,3.44053]
[1729659050316,0.7991,2616.1,2615.8,4.18713879]
[1729659055337,0.7991,2616.1,2615.8,3.44053]
[1729659059732,0.7991,2616.1,2615.8,6.88109]
[1729659059893,1.68916917,2616.3,2615.8,3.44053]
[1729659060100,1.68916917,2616.3,2615.9,3.44037]
[1729659060329,0.7651,2616.4,2616.0,3.44029]
[1729659060495,0.7651,2616.6,2616.1,4.128296]
[1729659060696,3.7651,2616.6,2616.2,3.43999]
[1729659061123,0.7651,2616.6,2616.2,3.43999]
[1729659061824,2.45426917,2616.6,2616.2,3.43999]
[1729659062136,2.45426917,2616.6,2616.2,4.2792786]
[1729659065345,1.68916917,2616.5,2616.2,4.2792786]
[1729659066296,0.7651,2616.6,2616.4,3.43983]
[1729659066297,1.68916917,2616.6,2616.4,3.43983]
[1729659066497,1.68916917,2616.7,2616.4,3.43983]
[1729659066704,0.7651,2616.8,2616.3,4.26455]
[1729659066705,1.68916917,2616.6,2616.3,4.26455]
[1729659066905,1.68916917,2616.6,2616.4,0.85438886]
[1729659067120,1.68916917,2616.7,2616.4,4.29420886]
[1729659067435,1.68916917,2616.7,2616.4,4.29413886]
[1729659067770,1.68916917,2616.9,2616.5,4.26424]
[1729659067947,1.68916917,2616.8,2616.5,4.26424]
[1729659068100,1.68916917,2616.8,2616.5,8.21573289]
[1729659068435,1.68916917,2616.8,2616.5,4.77609289]
[1729659068736,1.68916917,2616.6,2616.5,0.51186289]
[1729659068943,1.68916917,2616.6,2616.3,3.43989]
[1729659070100,2.51416917,2616.7,2616.3,3.43989]
[1729659070302,1.68916917,2616.6,2616.3,3.43989]
[1729659073352,1.68916917,2616.6,2616.3,3.43996]
[1729659074767,2.51416917,2616.7,2616.3,3.43996]
[1729659074969,1.68916917,2616.6,2616.3,3.43996]
[1729659077578,2.51416917,2616.7,2616.3,3.43996]
[1729659077882,1.68916917,2616.6,2616.3,3.43989]
[1729659078083,1.68916917,2616.6,2616.3,6.87979]
[1729659079053,1.68916917,2616.6,2616.4,3.43983]
[1729659080470,0.825,2616.7,2616.3,3.43989]
[1729659080471,1.68916917,2616.5,2616.3,3.43989]
[1729659080666,1.68916917,2616.6,2616.3,6.87979]
[1729659082617,1.68916917,2616.6,2616.3,3.43989]
[1729659083501,2.51416917,2616.7,2616.3,3.43989]
[1729659083673,2.51416917,2616.7,2616.3,6.87979]
[1729659084091,2.51416917,2616.7,2616.3,3.43989]
[1729659084398,1.68916917,2616.6,2616.2,4.26007]
[1729659084572,1.68916917,2616.6,2616.2,3.44007]
[1729659084769,1.68916917,2616.6,2616.0,1.200821]
[1729659085086,1.68916917,2616.6,2616.2,3.44]
[1729659085284,1.68916917,2616.6,2616.1,3.44023]
[1729659085502,1.68916917,2616.6,2616.3,3.43996]
[1729659086935,5.12823917,2617.0,2616.4,0.7527]
[1729659087140,1.68916917,2616.8,2616.5,3.43964]
[1729659087294,1.68916917,2616.8,2616.5,6.87926]
[1729659087795,1.68916917,2616.8,2616.5,3.43962]
[1729659088821,1.68916917,2616.8,2616.5,3.90682704]
[1729659091038,1.68916917,2616.8,2616.5,7.34643704]
[1729659091614,1.68916917,2616.9,2616.6,3.43956]
[1729659091815,4.2477,2617.1,2616.5,0.46720704]
[1729659092048,1.68916917,2616.9,2616.5,3.4396]
[1729659092419,1.68916917,2616.9,2616.6,3.43953]
[1729659092920,1.68916917,2616.8,2616.6,3.43953]
[1729659093626,1.68916917,2616.9,2616.6,3.43953]
[1729659094538,1.68916917,2616.8,2616.6,3.43953]
[1729659094738,1.68916917,2616.8,2616.7,0.687913]
[1729659094944,1.68916917,2616.9,2616.7,0.687913]
[1729659095113,1.68916917,2616.8,2616.7,0.687913]
[1729659095930,1.68916917,2616.9,2616.7,0.687913]
[1729659097922,1.68916917,2617.1,2616.7,4.879993]
[1729659098220,1.68916917,2617.1,2616.8,0.49564197]
[1729659098412,1.68916917,2617.0,2616.8,0.49564197]
[1729659099450,1.68916917,2616.9,2616.7,1.440613]
[1729659100351,1.68916917,2617.0,2616.8,3.43923]
[1729659100554,1.68916917,2617.2,2616.8,3.43923]
[1729659100758,1.68916917,2617.1,2616.8,3.43923]
[1729659100915,1.68916917,2617.1,2616.9,0.49562646]
[1729659102260,1.68916917,2617.0,2616.9,0.49562646]
[1729659103326,1.68916917,2617.0,2616.7,1.440613]
[1729659103678,1.68916917,2617.0,2616.7,0.687913]
[1729659103679,1.68916917,2616.8,2616.7,0.687913]
[1729659104037,1.68916917,2616.8,2616.5,3.4397]
[1729659104625,1.68916917,2616.8,2616.5,6.87934]
[1729659104968,1.68916917,2616.9,2616.6,3.43957]
[1729659106344,1.68916917,2616.8,2616.6,3.43957]
[1729659106571,1.68916917,2616.8,2616.7,0.687921]
[1729659107668,1.68916917,2616.9,2616.7,0.687921]
[1729659108732,1.68916917,2616.8,2616.7,0.687921]
[1729659109425,1.68916917,2616.9,2616.7,0.687921]
[1729659113253,2.50896917,2617.0,2616.7,0.687921]
[1729659113452,1.68916917,2616.9,2616.7,0.687921]
[1729659114989,2.50896917,2617.0,2616.7,0.687921]
[1729659115192,2.50896917,2617.0,2616.7,4.127361]
[1729659116498,1.68916917,2616.9,2616.7,4.127361]
[1729659117296,2.50896917,2617.0,2616.7,4.127361]
[1729659117657,1.68916917,2616.9,2616.6,3.43955]
[1729659118482,1.68916917,2616.9,2616.7,3.43937]
[1729659118692,0.8198,2617.0,2616.7,3.43937]
[1729659119365,1.68916917,2616.9,2616.6,6.87904]
[1729659119703,1.68916917,2616.9,2616.7,3.43944]
[1729659119999,0.8198,2617.0,2616.7,4.127333]
[1729659120567,0.8198,2617.0,2616.7,3.43944]
[1729659125434,0.8198,2617.0,2616.6,3.43955]
[1729659125636,1.68916917,2616.9,2616.6,3.43955]
[1729659130621,1.68916917,2616.9,2616.5,3.4397]
[1729659130955,1.68916917,2616.7,2616.4,1.200821]
[1729659131259,1.68916917,2616.6,2616.3,1.200821]
[1729659131466,1.68916917,2616.6,2616.2,5.431361]
[1729659131952,1.68916917,2616.3,2616.2,1.200821]
[1729659132151,2.48176917,2616.3,2616.0,5.431601]
[1729659132441,1.68916917,2616.1,2615.9,1.200821]
[1729659132650,1.68916917,2616.0,2615.9,1.200821]
[1729659132853,1.68916917,2616.1,2615.8,1.991321]
[1729659133209,1.68916917,2616.1,2615.8,4.2311]
[1729659133710,1.68916917,2616.0,2615.8,0.7905]
[1729659133909,1.68916917,2616.1,2615.8,0.7905]
[1729659134338,1.68916917,2616.1,2615.7,7.43798503]
[1729659134652,1.68916917,2616.1,2615.7,8.5410251]
[1729659135737,1.68916917,2616.1,2615.8,3.44062]
[1729659145064,1.68916917,2615.9,2615.6,0.7905]
[1729659145378,1.68916917,2615.8,2615.5,3.44102]
[1729659145941,1.68916917,2615.7,2615.5,3.44102]
[1729659146248,1.68916917,2615.6,2615.3,3.44126]
[1729659146890,1.68916917,2615.4,2615.3,3.44126]
[1729659147045,1.68916917,2615.5,2615.3,3.44126]
[1729659148352,1.68916917,2615.6,2615.3,3.44126]
[1729659151104,1.68916917,2615.5,2615.2,4.27419]
[1729659151392,1.68916917,2615.6,2615.2,4.27419]
[1729659152153,4.25287,2615.7,2615.2,4.27419]
[1729659152154,1.68916917,2615.5,2615.2,4.27419]
[1729659152394,1.68916917,2615.6,2615.3,3.44121]
[1729659152600,1.68916917,2615.6,2615.2,0.8328]
[1729659153064,1.68916917,2615.6,2615.2,4.27413]
[1729659153469,1.68916917,2615.6,2615.2,7.71547]
[1729659154254,1.68916917,2615.5,2615.2,3.44133]
[1729659154401,1.68916917,2615.6,2615.2,3.44133]
[1729659154793,1.68916917,2615.6,2615.2,6.88268]
[1729659156209,0.8121,2616.0,2615.4,3.44114]
[1729659156411,1.68916917,2615.8,2615.5,3.44094]
[1729659156903,1.68916917,2615.7,2615.5,3.44094]
[1729659157115,0.8121,2616.0,2615.6,3.44089]
[1729659157275,1.68916917,2615.8,2615.6,3.44089]
[1729659158081,1.68916917,2615.8,2615.5,3.44101]
[1729659161116,1.68916917,2615.9,2615.5,3.44095]
[1729659161481,1.68916917,2615.8,2615.5,3.44095]
[1729659162021,4.25253,2616.0,2615.5,3.44095]
[1729659162022,1.68916917,2615.9,2615.6,3.44089]
[1729659162478,1.68916917,2615.9,2615.5,3.44101]
[1729659163507,1.68916917,2615.9,2615.5,6.88202]
[1729659163878,1.68916917,2615.9,2615.5,3.44101]
[1729659164792,1.68916917,2615.8,2615.5,3.44101]
[1729659165024,1.68916917,2615.9,2615.5,3.44101]
[1729659165831,1.68916917,2615.8,2615.5,3.44101]
[1729659166721,1.68916917,2615.9,2615.5,3.44101]
[1729659167393,4.22019,2616.3,2615.8,3.44055]
[1729659167627,1.68916917,2616.1,2615.8,3.44055]
[1729659168283,1.68916917,2616.0,2615.8,3.44055]
[1729659168484,1.68916917,2616.1,2615.8,3.44055]
[1729659168921,1.68916917,2615.9,2615.5,6.88189]
[1729659169219,1.68916917,2615.8,2615.5,3.44093]
[1729659170227,5.12967917,2615.9,2615.5,3.44093]
[1729659171718,2.46936917,2616.0,2615.5,3.44093]
[1729659171901,1.68916917,2615.9,2615.5,3.44093]
[1729659174632,0.7802,2616.0,2615.6,0.7699]
[1729659174836,5.89657917,2616.2,2615.6,0.7699]
[1729659174983,5.89657917,2616.2,2615.7,3.44068]
[1729659175184,3.44023,2616.1,2615.6,4.21078]
[1729659175619,5.12939917,2616.1,2615.6,4.21078]
[1729659175803,5.12939917,2616.1,2615.6,5.21369002]
[1729659177587,1.68916917,2616.1,2615.7,3.44068]
[1729659179194,1.68916917,2616.0,2615.7,3.44068]
[1729659179633,1.68916917,2616.1,2615.8,3.44062]
[1729659180852,5.89667917,2616.2,2615.8,3.44062]
[1729659181153,1.68916917,2616.1,2615.9,0.7699]
[1729659181445,8.1073,2616.4,2616.0,3.4403]
[1729659181608,1.68916917,2616.4,2616.0,3.4403]
[1729659181809,1.68916917,2616.2,2615.9,4.631432]
[1729659182011,1.68916917,2616.1,2615.9,0.7699]
[1729659182251,1.68916917,2616.1,2615.7,3.44063]
[1729659182252,1.68916917,2616.1,2615.7,4.21053]
[1729659182945,1.68916917,2616.3,2615.8,3.44063]
[1729659183153,1.68916917,2616.2,2615.8,3.44063]
[1729659183823,1.68916917,2616.3,2615.9,3.44049]
[1729659184030,1.68916917,2616.3,2616.0,0.7699]
[1729659184438,1.68916917,2616.3,2616.0,4.21026]
[1729659184813,1.68916917,2616.2,2616.0,4.21026]
[1729659185240,1.68916917,2616.3,2616.0,4.21026]
[1729659185454,1.68916917,2616.2,2616.0,4.21026]
[1729659186034,4.20701,2616.5,2616.0,4.21026]
[1729659186358,1.68916917,2616.3,2616.0,4.21026]
[1729659186916,1.68916917,2616.2,2616.0,0.7699]
[1729659187117,1.68916917,2616.3,2616.0,4.21019]
[1729659187730,4.20702,2616.5,2616.0,4.21019]
[1729659187731,1.68916917,2616.2,2616.0,4.21019]
[1729659189062,1.68916917,2616.2,2616.0,0.7699]
[1729659189931,1.68916917,2616.2,2616.0,4.21023]
[1729659190330,1.68916917,2616.3,2616.0,4.21023]
[1729659190828,1.68916917,2616.2,2616.0,4.21023]
[1729659191766,1.68916917,2616.3,2616.0,4.21023]
[1729659192345,4.20702,2616.5,2616.0,4.21023]
[1729659192346,1.68916917,2616.2,2616.0,4.21023]
[1729659192558,1.68916917,2616.2,2616.0,0.7699]
[1729659192729,1.68916917,2616.2,2615.8,0.07645057]
[1729659192730,1.68916917,2616.1,2615.8,3.4405]
[1729659192926,3.43997,2616.3,2615.8,3.4405]
[1729659192927,1.68916917,2616.0,2615.8,3.4405]
[1729659193168,1.68916917,2616.0,2615.8,6.88106]
[1729659193670,1.68916917,2616.0,2615.8,3.4405]
[1729659193873,1.68916917,2616.0,2615.8,6.88106]
[1729659194164,1.68916917,2616.0,2615.9,3.44049]
[1729659194573,1.68916917,2616.1,2615.9,3.44049]
[1729659204186,1.68916917,2616.1,2616.0,3.44036]
[1729659204693,1.68916917,2616.3,2616.1,3.44023]
[1729659205184,0.7647,2616.5,2616.2,3.4401]
[1729659205388,1.68916917,2616.4,2616.2,3.4401]
[1729659205593,0.7647,2616.5,2616.3,3.43997]
[1729659205781,1.68916917,2616.5,2616.4,3.43981]
[1729659205984,1.68916917,2616.5,2616.3,4.19297]
[1729659206150,1.68916917,2616.5,2616.3,4.1929]
[1729659207154,1.68916917,2616.5,2616.3,7.6328]
[1729659207756,1.68916917,2616.5,2616.3,4.1929]
[1729659208701,1.68916917,2616.5,2616.3,4.19289]
[1729659208997,1.68916917,2616.4,2616.3,3.43989]
[1729659210361,1.68916917,2616.5,2616.3,3.43989]
[1729659210763,1.68916917,2616.5,2616.4,3.43982]
[1729659210962,1.68916917,2616.5,2616.4,4.13545587]
[1729659213407,1.68916917,2616.5,2616.4,3.43982]
[1729659214668,1.68916917,2616.6,2616.4,6.87959]
[1729659214871,1.68916917,2616.5,2616.4,3.43977]
[1729659219611,1.68916917,2616.5,2616.2,3.44001]
[1729659219825,1.68916917,2616.5,2616.2,6.87998]
[1729659220020,1.68916917,2616.5,2616.2,7.7633601]
[1729659220330,4.20403,2616.8,2616.2,4.3233501]
[1729659220331,1.68916917,2616.4,2616.2,4.3233501]
[1729659220834,1.68916917,2616.3,2616.1,3.44019]
[1729659221498,2.48696917,2616.4,2616.1,3.44019]
[1729659223410,1.68916917,2616.3,2616.1,3.44019]
[1729659223637,2.48696917,2616.4,2616.1,3.44019]
[1729659226652,2.48696917,2616.4,2616.2,3.44008]
[1729659230354,2.48696917,2616.4,2616.3,3.43997]
[1729659231416,0.7978,2616.7,2616.4,3.43982]
[1729659231644,1.68916917,2616.5,2616.4,3.43982]
[1729659232457,0.7978,2616.7,2616.5,3.43969]
[1729659232658,1.68916917,2616.6,2616.5,3.43969]
[1729659235952,1.68916917,2616.6,2616.3,4.20055]
[1729659236164,1.68916917,2616.5,2616.4,3.43983]
[1729659241666,0.8094,2616.9,2616.7,3.43936]
[1729659241963,1.68916917,2616.8,2616.7,3.43936]
[1729659242170,8.1494,2617.1,2616.6,0.7671]
[1729659242340,3.0,2617.2,2616.9,3.43912]
[1729659242540,3.0,2617.2,2616.6,0.84352916]
[1729659242744,0.8094,2617.3,2616.9,4.20628]
[1729659242745,3.0,2617.0,2616.9,4.20628]
[1729659242942,4.68916917,2617.0,2616.9,4.970852]
[1729659243273,1.68916917,2617.0,2616.9,4.970852]
[1729659243658,7.34,2617.6,2617.4,3.43852]
[1729659243864,1.68916917,2617.5,2617.2,6.8774]
[1729659244067,1.68916917,2617.3,2617.2,3.43866]
[1729659245462,1.68916917,2617.3,2617.2,3.97871301]
[1729659249181,1.68916917,2617.3,2617.2,0.54005301]
[1729659249335,5.92703917,2617.3,2616.8,3.4393]
[1729659249541,1.68916917,2616.9,2616.7,3.43943]
[1729659249741,3.43885,2617.2,2616.8,2.69]
[1729659250043,3.43906,2617.0,2616.8,2.69]
[1729659250742,3.43906,2617.0,2616.5,3.43963]
[1729659251054,3.43906,2617.0,2616.6,2.69]
[1729659251266,1.68916917,2616.7,2616.6,2.69]
[1729659251781,1.68916917,2616.7,2616.6,6.12957]
[1729659251957,1.68916917,2616.7,2616.6,3.43957]
[1729659258917,2.48836917,2616.7,2616.4,3.43976]
[1729659259213,1.68916917,2616.5,2616.4,3.43976]
[1729659262034,0.7992,2616.7,2616.6,3.43957]
[1729659262324,1.68916917,2616.7,2616.6,3.43957]
[1729659263637,1.68916917,2616.7,2616.5,3.4397]
[1729659264830,0.7992,2616.9,2616.5,4.21143752]
[1729659265033,1.68916917,2616.8,2616.6,3.43951]
[1729659266634,1.68916917,2616.7,2616.6,3.43951]
[1729659267322,4.27167,2617.1,2616.7,3.43943]
[1729659267524,1.68916917,2616.9,2616.7,3.43943]
[1729659267828,1.68916917,2617.1,2616.9,3.43912]
[1729659268004,1.68916917,2617.0,2616.9,3.43912]
[1729659268542,0.8327,2617.3,2616.9,6.87823]
[1729659268833,1.68916917,2617.1,2616.9,6.87822]
[1729659269036,1.68916917,2617.0,2616.9,4.126932]
[1729659269237,1.68916917,2617.1,2616.9,3.43911]
[1729659269437,1.68916917,2617.1,2616.9,6.8782]
[1729659269605,1.68916917,2617.1,2616.9,3.43909]
[1729659271412,0.8327,2617.3,2617.0,3.43896]
[1729659271611,1.68916917,2617.1,2617.0,0.8192]
[1729659271846,1.68916917,2617.1,2617.0,1.588939]
[1729659272710,1.68916917,2617.1,2616.8,3.43924]
[1729659272935,1.68916917,2616.9,2616.8,3.43924]
[1729659276250,1.68916917,2617.0,2616.9,3.43918]
[1729659276753,1.68916917,2617.0,2616.8,3.43924]
[1729659276953,4.27145,2617.3,2616.8,3.43924]
[1729659276954,1.68916917,2616.9,2616.8,3.43924]
[1729659277159,1.68916917,2616.9,2616.8,4.209036]
[1729659283049,1.68916917,2617.0,2616.8,4.209036]
[1729659283248,1.68916917,2616.9,2616.8,4.209036]
[1729659287349,1.68916917,2617.0,2616.8,4.209036]
[1729659287849,1.68916917,2616.9,2616.8,4.209036]
[1729659289481,1.68916917,2616.9,2616.6,3.43956]
[1729659289482,2.45986917,2616.9,2616.6,3.43956]
[1729659289658,2.45986917,2616.9,2616.5,3.43961]
[1729659289659,1.68916917,2616.7,2616.5,3.43961]
[1729659289859,1.68916917,2616.6,2616.5,3.43961]
[1729659296358,1.68916917,2616.7,2616.5,3.43961]
[1729659296701,1.68916917,2616.6,2616.5,3.43961]
[1729659298171,1.68916917,2616.6,2616.4,3.43983]
[1729659298472,1.68916917,2616.5,2616.4,3.43983]
[1729659298791,1.68916917,2616.5,2616.4,3.43975]
[1729659306021,1.68916917,2616.6,2616.4,7.57513879]
[1729659306319,1.68916917,2616.6,2616.4,4.13537879]
[1729659307685,1.68916917,2616.6,2616.4,7.57514879]
[1729659307921,1.68916917,2616.6,2616.4,4.13537879]
[1729659308078,1.68916917,2616.6,2616.4,3.43975]
[1729659308284,1.68916917,2616.5,2616.4,3.43975]
[1729659312485,1.68916917,2616.5,2616.3,3.43996]
[1729659312790,1.68916917,2616.4,2616.2,6.88]
[1729659312990,1.68916917,2616.4,2616.3,3.43997]
[1729659315320,1.68916917,2616.5,2616.3,3.43997]
[1729659315523,1.68916917,2616.5,2616.4,3.43978]
[1729659320306,1.68916917,2616.5,2616.3,3.43997]
[1729659320507,1.68916917,2616.5,2616.3,6.87994]
[1729659321203,1.68916917,2616.5,2616.4,3.43984]
[1729659322506,2.48846917,2616.6,2616.4,3.43984]
[1729659322838,1.68916917,2616.5,2616.3,6.87986]
[1729659325266,3.43934,2616.8,2615.9,7.64150482]
[1729659325267,0.8281,2616.3,2615.9,7.64150482]
[1729659325429,0.8281,2616.3,2616.0,3.44024]
[1729659325430,1.68916917,2616.1,2616.0,3.44024]
[1729659325971,1.68916917,2616.2,2616.0,3.44024]
[1729659326525,1.68916917,2616.1,2616.0,3.44024]
[1729659328060,0.8281,2616.3,2616.0,3.44024]
[1729659328061,8.1681,2616.9,2616.5,3.43964]
[1729659328267,1.68916917,2616.7,2616.5,6.87926]
[1729659328632,1.68916917,2616.7,2616.6,3.43948]
[1729659329376,1.68916917,2616.8,2616.6,3.43948]
[1729659329539,0.8281,2616.9,2616.7,3.43943]
[1729659329867,1.68916917,2616.8,2616.7,3.43943]
[1729659332751,1.68916917,2616.8,2616.6,3.43957]
[1729659332976,1.68916917,2616.7,2616.6,3.43957]
[1729659336485,1.68916917,2617.0,2616.7,0.7672]
[1729659336644,1.68916917,2616.9,2616.8,3.43924]
[1729659337075,1.68916917,2617.0,2616.8,3.43924]
[1729659337600,1.68916917,2616.9,2616.8,3.43924]
[1729659337794,1.68916917,2616.9,2616.8,4.203828]
[1729659339461,0.8281,2617.2,2616.8,4.203828]
[1729659339462,0.8281,2617.2,2616.9,3.43908]
[1729659339665,1.68916917,2617.2,2617.0,3.43905]
[1729659339972,1.68916917,2617.1,2617.0,3.43905]
[1729659340164,1.68916917,2617.1,2617.0,4.2033438]
[1729659341066,0.59823189,2617.3,2617.0,4.2033438]
[1729659341376,1.68916917,2617.1,2617.0,4.2033438]
[1729659343104,0.59823189,2617.3,2617.0,4.2033438]
[1729659343105,1.68916917,2617.2,2617.0,4.2033438]
[1729659343264,1.68916917,2617.1,2617.0,0.7642938]
[1729659347209,1.68916917,2617.1,2616.9,3.43911]
[1729659347519,1.68916917,2617.0,2616.7,4.20656]
[1729659347681,1.68916917,2616.8,2616.7,4.20656]
[1729659348609,1.68916917,2616.9,2616.8,3.43925]
[1729659349785,1.68916917,2616.9,2616.7,4.20656]
[1729659349989,1.68916917,2616.9,2616.7,5.09128648]
[1729659350417,1.68916917,2616.9,2616.7,8.53065648]
[1729659350819,1.68916917,2616.9,2616.7,5.09128648]
[1729659351113,1.68916917,2616.9,2616.7,8.53063648]
[1729659351275,1.68916917,2616.9,2616.7,7.76343648]
[1729659354124,1.68916917,2616.9,2616.8,3.43931]
[1729659354737,1.68916917,2616.9,2616.7,7.76345648]
[1729659355021,1.68916917,2616.9,2616.7,4.32407648]
[1729659355228,1.68916917,2616.9,2616.8,3.43931]
[1729659356320,1.68916917,2616.9,2616.7,3.43935]
[1729659356528,3.4388,2617.2,2616.7,3.43935]
[1729659356529,1.68916917,2616.8,2616.7,3.43935]
[1729659365032,0.8032,2617.0,2616.8,3.43931]
[1729659365033,1.68916917,2616.9,2616.8,3.43931]
[1729659365515,0.8032,2617.0,2616.8,3.43931]
[1729659365721,1.68916917,2616.9,2616.8,3.43931]
[1729659365917,0.8032,2617.2,2616.8,4.8897597]
[1729659366236,1.68916917,2616.9,2616.8,4.19423]
[1729659366704,1.68916917,2616.9,2616.8,3.43923]
[1729659367205,2.49236917,2616.9,2616.6,3.43948]